[Event "Titled Tuesday Blitz November 14 Late 2023"]
[White "Feliz Dotel, Dewar Bienvenido"]
[Black "Qiao, Cindy"]
[WhiteFideId "6402801"]
[BlackFideId "2620243"]
[WhiteElo "2122"]
[BlackElo "2399"]
[Result "0-1"]
[Round "6"]
[TimeControl "180+1"]
[Date "2023.11.14"]
[WhiteClock "0:00:00"]
[BlackClock "0:00:59"]
[Board "119"]

1. d4 {[%clk 0:02:58]}  d5 {[%clk 0:02:57]} 2. e3 {[%clk 0:02:58]}  Nf6 {[%clk 0:02:57]} 3. Nf3 {[%clk 0:02:57]}  e6 {[%clk 0:02:57]} 4. Bd3 {[%clk 0:02:57]}  c5 {[%clk 0:02:55]} 5. b3 {[%clk 0:02:54]}  Nc6 {[%clk 0:02:56]} 6. a3 {[%clk 0:02:53]}  Be7 {[%clk 0:02:56]} 7. dxc5 {[%clk 0:02:51]}  Bxc5 {[%clk 0:02:57]} 8. Bb2 {[%clk 0:02:51]}  O-O {[%clk 0:02:56]} 9. O-O {[%clk 0:02:50]}  h6 {[%clk 0:02:54]} 10. b4 {[%clk 0:02:22]}  Be7 {[%clk 0:02:34]} 11. Nbd2 {[%clk 0:02:15]}  b6 {[%clk 0:02:27]} 12. c4 {[%clk 0:02:13]}  Bb7 {[%clk 0:02:27]} 13. Rc1 {[%clk 0:02:08]}  Rc8 {[%clk 0:02:26]} 14. Nb3 {[%clk 0:02:06]}  Re8 {[%clk 0:02:09]} 15. cxd5 {[%clk 0:02:01]}  Qxd5 {[%clk 0:02:08]} 16. Be2 {[%clk 0:01:32]}  Qf5 {[%clk 0:01:43]} 17. b5 {[%clk 0:01:19]}  Nb8 {[%clk 0:01:27]} 18. Nbd4 {[%clk 0:01:17]}  Qd5 {[%clk 0:01:24]} 19. Qb3 {[%clk 0:00:40]}  Qxb3 {[%clk 0:01:20]} 20. Nxb3 {[%clk 0:00:40]}  Nbd7 {[%clk 0:01:20]} 21. Rfd1 {[%clk 0:00:36]}  Nc5 {[%clk 0:01:20]} 22. Nxc5 {[%clk 0:00:36]}  Bxc5 {[%clk 0:01:20]} 23. Bxf6 {[%clk 0:00:35]}  gxf6 {[%clk 0:01:20]} 24. h3 {[%clk 0:00:30]}  Red8 {[%clk 0:01:20]} 25. Rxd8+ {[%clk 0:00:23]}  Rxd8 {[%clk 0:01:21]} 26. a4 {[%clk 0:00:21]}  Kg7 {[%clk 0:01:15]} 27. Rd1 {[%clk 0:00:20]}  Rxd1+ {[%clk 0:01:13]} 28. Bxd1 {[%clk 0:00:21]}  Bd5 {[%clk 0:01:13]} 29. Kf1 {[%clk 0:00:15]}  Bc4+ {[%clk 0:01:12]} 30. Be2 {[%clk 0:00:14]}  Bb3 {[%clk 0:01:12]} 31. Nd2 {[%clk 0:00:13]}  Bxa4 {[%clk 0:01:12]} 32. Ne4 {[%clk 0:00:13]}  Bb4 {[%clk 0:01:10]} 33. Bc4 {[%clk 0:00:11]}  f5 {[%clk 0:01:09]} 34. Ng3 {[%clk 0:00:10]}  Kf6 {[%clk 0:01:05]} 35. Nh5+ {[%clk 0:00:10]}  Ke5 {[%clk 0:01:03]} 36. Nf4 {[%clk 0:00:10]}  Kd6 {[%clk 0:01:02]} 37. Ke2 {[%clk 0:00:08]}  Kc5 {[%clk 0:01:01]} 38. Bd3 {[%clk 0:00:04]}  Bxb5 {[%clk 0:01:01]} 39. g4 {[%clk 0:00:03]}  fxg4 {[%clk 0:01:00]} 40. hxg4 {[%clk 0:00:00]}  a5 {[%clk 0:00:59]} 0-1


[Site "https://www.chess.com"]

[Event "Titled Tuesday Blitz November 14 Late 2023"]
[White "Laskakis, Konstantinos"]
[Black "miraitrunks"]
[WhiteFideId "42134374"]
[WhiteElo "2343"]
[BlackElo "2089"]
[Result "1/2-1/2"]
[Round "6"]
[TimeControl "180+1"]
[Date "2023.11.14"]
[WhiteClock "0:00:22"]
[BlackClock "0:00:33"]
[Board "121"]

1. d4 {[%clk 0:03:00]}  Nf6 {[%clk 0:02:58]} 2. c4 {[%clk 0:03:00]}  g6 {[%clk 0:02:58]} 3. Nc3 {[%clk 0:03:00]}  d5 {[%clk 0:02:41]} 4. e3 {[%clk 0:02:56]}  Bg7 {[%clk 0:02:41]} 5. cxd5 {[%clk 0:02:56]}  Nxd5 {[%clk 0:02:41]} 6. Nxd5 {[%clk 0:02:56]}  Qxd5 {[%clk 0:02:41]} 7. Ne2 {[%clk 0:02:56]}  O-O {[%clk 0:02:41]} 8. Nc3 {[%clk 0:02:57]}  Qd8 {[%clk 0:02:36]} 9. Be2 {[%clk 0:02:57]}  e5 {[%clk 0:02:35]} 10. d5 {[%clk 0:02:55]}  c6 {[%clk 0:02:34]} 11. e4 {[%clk 0:02:55]}  cxd5 {[%clk 0:02:34]} 12. exd5 {[%clk 0:02:55]}  b6 {[%clk 0:02:30]} 13. O-O {[%clk 0:02:51]}  Bb7 {[%clk 0:02:30]} 14. Be3 {[%clk 0:02:30]}  f5 {[%clk 0:02:26]} 15. Bc4 {[%clk 0:02:08]}  Kh8 {[%clk 0:02:24]} 16. f4 {[%clk 0:02:06]}  exf4 {[%clk 0:02:22]} 17. Bxf4 {[%clk 0:02:03]}  Nd7 {[%clk 0:02:22]} 18. Qd2 {[%clk 0:01:59]}  Rc8 {[%clk 0:02:22]} 19. Be2 {[%clk 0:01:38]}  Nc5 {[%clk 0:02:12]} 20. Bf3 {[%clk 0:01:35]}  Ba6 {[%clk 0:02:02]} 21. Be2 {[%clk 0:01:30]}  Bxe2 {[%clk 0:01:59]} 22. Nxe2 {[%clk 0:01:28]}  Ne4 {[%clk 0:01:58]} 23. Qd3 {[%clk 0:01:21]}  Bxb2 {[%clk 0:01:56]} 24. Rad1 {[%clk 0:01:21]}  Bg7 {[%clk 0:01:52]} 25. d6 {[%clk 0:01:20]}  Qd7 {[%clk 0:01:49]} 26. Ng3 {[%clk 0:01:09]}  Rc3 {[%clk 0:01:35]} 27. Qd5 {[%clk 0:01:02]}  Rc5 {[%clk 0:01:24]} 28. Qd3 {[%clk 0:00:54]}  g5 {[%clk 0:01:16]} 29. Bc1 {[%clk 0:00:34]}  Rc3 {[%clk 0:01:13]} 30. Qd5 {[%clk 0:00:29]}  Nxg3 {[%clk 0:00:49]} 31. hxg3 {[%clk 0:00:29]}  g4 {[%clk 0:00:47]} 32. Bf4 {[%clk 0:00:28]}  Rc2 {[%clk 0:00:44]} 33. Be5 {[%clk 0:00:27]}  Rfc8 {[%clk 0:00:43]} 34. Bxg7+ {[%clk 0:00:26]}  Kxg7 {[%clk 0:00:43]} 35. Rfe1 {[%clk 0:00:26]}  Re8 {[%clk 0:00:41]} 36. Rxe8 {[%clk 0:00:25]}  Qxe8 {[%clk 0:00:42]} 37. d7 {[%clk 0:00:25]}  Qe3+ {[%clk 0:00:41]} 38. Kh2 {[%clk 0:00:25]}  Qh6+ {[%clk 0:00:42]} 39. Kg1 {[%clk 0:00:24]}  Qe3+ {[%clk 0:00:41]} 40. Kh2 {[%clk 0:00:22]}  Qh6+ {[%clk 0:00:41]} 41. Kg1 {[%clk 0:00:22]}  Qe3+ {[%clk 0:00:33]} 1/2-1/2


[Site "https://www.chess.com"]

[Event "Titled Tuesday Blitz November 14 Late 2023"]
[White "Darko-Dimitrijevic"]
[Black "AndresDelgado77"]
[WhiteElo "2193"]
[BlackElo "2325"]
[Result "0-1"]
[Round "6"]
[TimeControl "180+1"]
[Date "2023.11.14"]
[WhiteClock "0:00:19"]
[BlackClock "0:00:11"]
[Board "123"]

1. e4 {[%clk 0:03:00]}  e6 {[%clk 0:02:59]} 2. d4 {[%clk 0:03:00]}  d5 {[%clk 0:02:58]} 3. e5 {[%clk 0:03:00]}  c5 {[%clk 0:02:58]} 4. c3 {[%clk 0:03:00]}  Qb6 {[%clk 0:02:56]} 5. Nf3 {[%clk 0:02:59]}  Nc6 {[%clk 0:02:56]} 6. Be2 {[%clk 0:02:56]}  cxd4 {[%clk 0:02:53]} 7. cxd4 {[%clk 0:02:55]}  Nh6 {[%clk 0:02:54]} 8. Bxh6 {[%clk 0:02:10]}  Qxb2 {[%clk 0:02:50]} 9. Nbd2 {[%clk 0:02:08]}  gxh6 {[%clk 0:02:48]} 10. O-O {[%clk 0:02:07]}  Be7 {[%clk 0:01:35]} 11. Nb3 {[%clk 0:02:03]}  O-O {[%clk 0:01:27]} 12. a4 {[%clk 0:01:48]}  Nb4 {[%clk 0:01:06]} 13. Rb1 {[%clk 0:01:44]}  Qa2 {[%clk 0:00:57]} 14. Ra1 {[%clk 0:01:34]}  Qb2 {[%clk 0:00:51]} 15. Rb1 {[%clk 0:01:32]}  Qa2 {[%clk 0:00:44]} 16. Qc1 {[%clk 0:01:12]}  Qxe2 {[%clk 0:00:42]} 17. Qxh6 {[%clk 0:01:10]}  Qc2 {[%clk 0:00:33]} 18. Nc5 {[%clk 0:01:07]}  Bxc5 {[%clk 0:00:27]} 19. dxc5 {[%clk 0:01:05]}  Nc6 {[%clk 0:00:27]} 20. a5 {[%clk 0:00:48]}  Qg6 {[%clk 0:00:25]} 21. Qh4 {[%clk 0:00:47]}  a6 {[%clk 0:00:19]} 22. Rfd1 {[%clk 0:00:44]}  f6 {[%clk 0:00:19]} 23. exf6 {[%clk 0:00:43]}  Qxf6 {[%clk 0:00:18]} 24. Qg4+ {[%clk 0:00:41]}  Kh8 {[%clk 0:00:14]} 25. Rb3 {[%clk 0:00:35]}  e5 {[%clk 0:00:13]} 26. Qh5 {[%clk 0:00:19]}  e4 {[%clk 0:00:11]} 0-1


[Site "https://www.chess.com"]

[Event "Titled Tuesday Blitz November 14 Late 2023"]
[White "Eggleston, Thomas A"]
[Black "campochess"]
[WhiteFideId "412139"]
[WhiteElo "2324"]
[BlackElo "2188"]
[Result "1-0"]
[Round "6"]
[TimeControl "180+1"]
[Date "2023.11.14"]
[WhiteClock "0:00:19"]
[BlackClock "0:00:59"]
[Board "124"]

1. e4 {[%clk 0:03:00]}  c5 {[%clk 0:02:58]} 2. Nf3 {[%clk 0:03:00]}  Nc6 {[%clk 0:02:58]} 3. Bb5 {[%clk 0:03:00]}  e5 {[%clk 0:02:58]} 4. O-O {[%clk 0:02:56]}  Nge7 {[%clk 0:02:57]} 5. Re1 {[%clk 0:02:56]}  a6 {[%clk 0:02:57]} 6. Bf1 {[%clk 0:02:55]}  d6 {[%clk 0:02:57]} 7. c3 {[%clk 0:02:55]}  Bg4 {[%clk 0:02:52]} 8. h3 {[%clk 0:02:55]}  Bh5 {[%clk 0:02:48]} 9. g4 {[%clk 0:02:54]}  Bg6 {[%clk 0:02:48]} 10. d4 {[%clk 0:02:54]}  Qc7 {[%clk 0:02:47]} 11. Na3 {[%clk 0:02:46]}  h5 {[%clk 0:02:45]} 12. g5 {[%clk 0:02:45]}  h4 {[%clk 0:02:45]} 13. Bg2 {[%clk 0:02:03]}  Bh5 {[%clk 0:02:43]} 14. dxc5 {[%clk 0:01:58]}  dxc5 {[%clk 0:02:41]} 15. Nc4 {[%clk 0:01:56]}  Ng6 {[%clk 0:02:40]} 16. Ne3 {[%clk 0:01:46]}  Nf4 {[%clk 0:02:36]} 17. Nd5 {[%clk 0:01:46]}  Qb8 {[%clk 0:02:22]} 18. Nxf4 {[%clk 0:01:31]}  exf4 {[%clk 0:02:21]} 19. e5 {[%clk 0:01:25]}  Be7 {[%clk 0:02:11]} 20. Bxf4 {[%clk 0:01:24]}  O-O {[%clk 0:02:07]} 21. Qc1 {[%clk 0:01:14]}  Qa7 {[%clk 0:02:06]} 22. Nxh4 {[%clk 0:01:11]}  g6 {[%clk 0:02:02]} 23. Qc2 {[%clk 0:00:57]}  Rad8 {[%clk 0:01:59]} 24. e6 {[%clk 0:00:48]}  fxe6 {[%clk 0:01:48]} 25. Nxg6 {[%clk 0:00:48]}  Rxf4 {[%clk 0:01:32]} 26. Nxf4 {[%clk 0:00:47]}  Be8 {[%clk 0:01:32]} 27. Nxe6 {[%clk 0:00:44]}  Rd6 {[%clk 0:01:23]} 28. Nc7 {[%clk 0:00:36]}  Qb8 {[%clk 0:01:18]} 29. Nxe8 {[%clk 0:00:34]}  Qxe8 {[%clk 0:01:18]} 30. Bxc6 {[%clk 0:00:31]}  Rxc6 {[%clk 0:01:14]} 31. Qe4 {[%clk 0:00:26]}  Rc7 {[%clk 0:01:13]} 32. Qe6+ {[%clk 0:00:20]}  Kh8 {[%clk 0:00:59]} 33. Qe5+ {[%clk 0:00:19]} 1-0


[Site "https://www.chess.com"]

[Event "Titled Tuesday Blitz November 14 Late 2023"]
[White "Harish, Neeraj"]
[Black "ThePeasant98"]
[WhiteFideId "30958130"]
[WhiteElo "2324"]
[BlackElo "2169"]
[Result "1-0"]
[Round "6"]
[TimeControl "180+1"]
[Date "2023.11.14"]
[WhiteClock "0:00:10"]
[BlackClock "0:00:11"]
[Board "125"]

1. e4 {[%clk 0:02:59]}  c5 {[%clk 0:03:00]} 2. Nf3 {[%clk 0:02:56]}  d6 {[%clk 0:03:00]} 3. d4 {[%clk 0:02:56]}  cxd4 {[%clk 0:03:01]} 4. Nxd4 {[%clk 0:02:57]}  Nf6 {[%clk 0:03:01]} 5. Nc3 {[%clk 0:02:58]}  Nc6 {[%clk 0:03:01]} 6. Bg5 {[%clk 0:02:56]}  Bd7 {[%clk 0:03:02]} 7. Nxc6 {[%clk 0:02:49]}  bxc6 {[%clk 0:02:59]} 8. Bxf6 {[%clk 0:02:42]}  gxf6 {[%clk 0:02:58]} 9. Bc4 {[%clk 0:02:42]}  e6 {[%clk 0:02:56]} 10. Qe2 {[%clk 0:02:36]}  Be7 {[%clk 0:02:53]} 11. Rd1 {[%clk 0:02:28]}  Rb8 {[%clk 0:02:38]} 12. Bb3 {[%clk 0:02:08]}  Qa5 {[%clk 0:02:38]} 13. O-O {[%clk 0:02:07]}  d5 {[%clk 0:02:37]} 14. exd5 {[%clk 0:02:05]}  cxd5 {[%clk 0:02:38]} 15. Rfe1 {[%clk 0:01:45]}  Qd8 {[%clk 0:01:47]} 16. Qh5 {[%clk 0:01:09]}  h6 {[%clk 0:01:43]} 17. Bxd5 {[%clk 0:01:04]}  exd5 {[%clk 0:01:40]} 18. Nxd5 {[%clk 0:01:05]}  Rb5 {[%clk 0:00:48]} 19. Rxe7+ {[%clk 0:00:09]}  Qxe7 {[%clk 0:00:38]} 20. Nc7+ {[%clk 0:00:09]}  Kf8 {[%clk 0:00:36]} 21. Nxb5 {[%clk 0:00:10]}  Bxb5 {[%clk 0:00:19]} 22. Qxb5 {[%clk 0:00:09]}  Qe5 {[%clk 0:00:16]} 23. Qxe5 {[%clk 0:00:09]}  fxe5 {[%clk 0:00:15]} 24. Rd8+ {[%clk 0:00:09]}  Kg7 {[%clk 0:00:15]} 25. Rxh8 {[%clk 0:00:10]}  Kxh8 {[%clk 0:00:16]} 26. Kf1 {[%clk 0:00:11]}  Kg7 {[%clk 0:00:17]} 27. Ke2 {[%clk 0:00:12]}  Kf6 {[%clk 0:00:17]} 28. Ke3 {[%clk 0:00:13]}  Ke6 {[%clk 0:00:18]} 29. g4 {[%clk 0:00:13]}  Kd5 {[%clk 0:00:17]} 30. h4 {[%clk 0:00:12]}  a5 {[%clk 0:00:16]} 31. b3 {[%clk 0:00:11]}  Ke6 {[%clk 0:00:14]} 32. Ke4 {[%clk 0:00:10]}  h5 {[%clk 0:00:11]} 33. g5 {[%clk 0:00:10]} 1-0


[Site "https://www.chess.com"]

[Event "Titled Tuesday Blitz November 14 Late 2023"]
[White "Tsukerman, Julia"]
[Black "patzersame"]
[WhiteFideId "2621649"]
[WhiteElo "2157"]
[BlackElo "2316"]
[Result "0-1"]
[Round "6"]
[TimeControl "180+1"]
[Date "2023.11.14"]
[WhiteClock "0:01:20"]
[BlackClock "0:01:42"]
[Board "126"]

1. e4 {[%clk 0:03:00]}  e5 {[%clk 0:02:53]} 2. Nf3 {[%clk 0:03:00]}  Nf6 {[%clk 0:02:50]} 3. Nxe5 {[%clk 0:02:59]}  d6 {[%clk 0:02:48]} 4. Nf3 {[%clk 0:02:57]}  Nxe4 {[%clk 0:02:49]} 5. Nc3 {[%clk 0:02:57]}  Nxc3 {[%clk 0:02:49]} 6. dxc3 {[%clk 0:02:57]}  Be7 {[%clk 0:02:50]} 7. Bf4 {[%clk 0:02:56]}  O-O {[%clk 0:02:51]} 8. Qd2 {[%clk 0:02:54]}  Be6 {[%clk 0:02:52]} 9. O-O-O {[%clk 0:02:47]}  Bxa2 {[%clk 0:02:52]} 10. b3 {[%clk 0:02:47]}  a5 {[%clk 0:02:51]} 11. Kb2 {[%clk 0:02:45]}  a4 {[%clk 0:02:52]} 12. Kxa2 {[%clk 0:02:43]}  axb3+ {[%clk 0:02:53]} 13. Kb2 {[%clk 0:02:42]}  Ra2+ {[%clk 0:02:44]} 14. Kxb3 {[%clk 0:02:34]}  Ra8 {[%clk 0:02:45]} 15. Kb2 {[%clk 0:02:24]}  c5 {[%clk 0:02:44]} 16. Qd5 {[%clk 0:01:47]}  Qa5 {[%clk 0:02:34]} 17. Qb3 {[%clk 0:01:37]}  d5 {[%clk 0:02:08]} 18. c4 {[%clk 0:01:32]}  b5 {[%clk 0:01:48]} 19. Rxd5 {[%clk 0:01:20]}  Qa1# {[%clk 0:01:42]} 0-1


[Site "https://www.chess.com"]

[Event "Titled Tuesday Blitz November 14 Late 2023"]
[White "Michalski, Olaf"]
[Black "Bazzano, Sebastian"]
[WhiteFideId "1106740"]
[BlackFideId "104566"]
[WhiteElo "2145"]
[BlackElo "2309"]
[Result "1-0"]
[Round "6"]
[TimeControl "180+1"]
[Date "2023.11.14"]
[WhiteClock "0:00:13"]
[BlackClock "0:00:00"]
[Board "127"]

1. d4 {[%clk 0:02:57]}  Nf6 {[%clk 0:02:59]} 2. Nf3 {[%clk 0:02:55]}  g6 {[%clk 0:02:57]} 3. c4 {[%clk 0:02:55]}  c5 {[%clk 0:02:57]} 4. d5 {[%clk 0:02:55]}  e6 {[%clk 0:02:57]} 5. Nc3 {[%clk 0:02:55]}  exd5 {[%clk 0:02:57]} 6. cxd5 {[%clk 0:02:56]}  d6 {[%clk 0:02:58]} 7. Nd2 {[%clk 0:02:55]}  Bg7 {[%clk 0:02:58]} 8. Nc4 {[%clk 0:02:56]}  O-O {[%clk 0:02:56]} 9. Bf4 {[%clk 0:02:56]}  Ne8 {[%clk 0:02:55]} 10. Qd2 {[%clk 0:02:55]}  a6 {[%clk 0:02:47]} 11. a4 {[%clk 0:02:54]}  Nd7 {[%clk 0:02:26]} 12. Nxd6 {[%clk 0:02:36]}  Nxd6 {[%clk 0:02:25]} 13. Bxd6 {[%clk 0:02:36]}  Re8 {[%clk 0:02:25]} 14. e3 {[%clk 0:02:36]}  Qb6 {[%clk 0:01:52]} 15. Bg3 {[%clk 0:02:21]}  Nf6 {[%clk 0:01:51]} 16. a5 {[%clk 0:01:57]}  Qd8 {[%clk 0:01:29]} 17. Bc4 {[%clk 0:01:49]}  Ne4 {[%clk 0:01:20]} 18. Nxe4 {[%clk 0:01:38]}  Rxe4 {[%clk 0:01:21]} 19. Rc1 {[%clk 0:01:38]}  h5 {[%clk 0:00:59]} 20. f3 {[%clk 0:01:26]}  Re8 {[%clk 0:00:44]} 21. O-O {[%clk 0:01:23]}  Rxe3 {[%clk 0:00:41]} 22. Bf2 {[%clk 0:01:07]}  Re8 {[%clk 0:00:31]} 23. Bxc5 {[%clk 0:01:06]}  Bf5 {[%clk 0:00:27]} 24. Rfe1 {[%clk 0:00:53]}  Qf6 {[%clk 0:00:18]} 25. b4 {[%clk 0:00:51]}  h4 {[%clk 0:00:14]} 26. h3 {[%clk 0:00:45]}  Kh7 {[%clk 0:00:12]} 27. Rxe8 {[%clk 0:00:27]}  Rxe8 {[%clk 0:00:13]} 28. Re1 {[%clk 0:00:27]}  Bh6 {[%clk 0:00:09]} 29. Qd1 {[%clk 0:00:20]}  Rxe1+ {[%clk 0:00:03]} 30. Qxe1 {[%clk 0:00:20]}  Qb2 {[%clk 0:00:00]} 31. Qd1 {[%clk 0:00:13]} 1-0


[Site "https://www.chess.com"]

[Event "Titled Tuesday Blitz November 14 Late 2023"]
[White "Elbebiber"]
[Black "Clawitter, Craig"]
[BlackFideId "2023105"]
[WhiteElo "2062"]
[BlackElo "2275"]
[Result "1-0"]
[Round "6"]
[TimeControl "180+1"]
[Date "2023.11.14"]
[WhiteClock "0:00:22"]
[BlackClock "0:00:00"]
[Board "128"]

1. d4 {[%clk 0:03:00]}  e6 {[%clk 0:02:55]} 2. Nf3 {[%clk 0:02:57]}  Nf6 {[%clk 0:02:55]} 3. Bg5 {[%clk 0:02:56]}  c5 {[%clk 0:02:53]} 4. c3 {[%clk 0:02:49]}  b6 {[%clk 0:02:50]} 5. e3 {[%clk 0:02:48]}  Bb7 {[%clk 0:02:50]} 6. Bd3 {[%clk 0:02:42]}  Be7 {[%clk 0:02:50]} 7. Nbd2 {[%clk 0:02:41]}  Nd5 {[%clk 0:02:36]} 8. Bxe7 {[%clk 0:02:38]}  Qxe7 {[%clk 0:02:36]} 9. O-O {[%clk 0:02:27]}  O-O {[%clk 0:02:31]} 10. Be4 {[%clk 0:02:15]}  d6 {[%clk 0:02:22]} 11. Qe2 {[%clk 0:02:06]}  Nf6 {[%clk 0:02:15]} 12. Bd3 {[%clk 0:02:05]}  cxd4 {[%clk 0:02:06]} 13. cxd4 {[%clk 0:02:01]}  a6 {[%clk 0:01:57]} 14. Rfc1 {[%clk 0:02:01]}  Nc6 {[%clk 0:01:53]} 15. a3 {[%clk 0:01:51]}  Rfc8 {[%clk 0:01:52]} 16. Rc3 {[%clk 0:01:47]}  b5 {[%clk 0:01:47]} 17. b4 {[%clk 0:01:38]}  Rc7 {[%clk 0:01:31]} 18. Rac1 {[%clk 0:01:37]}  Rac8 {[%clk 0:01:31]} 19. Nb1 {[%clk 0:01:20]}  Nd5 {[%clk 0:01:14]} 20. R3c2 {[%clk 0:01:18]}  g6 {[%clk 0:01:09]} 21. Qd2 {[%clk 0:01:14]}  Kg7 {[%clk 0:00:43]} 22. Be2 {[%clk 0:01:13]}  Nf6 {[%clk 0:00:25]} 23. Bd3 {[%clk 0:01:07]}  Nd8 {[%clk 0:00:24]} 24. Nc3 {[%clk 0:00:57]}  Nd5 {[%clk 0:00:20]} 25. Ne4 {[%clk 0:00:48]}  Rxc2 {[%clk 0:00:19]} 26. Rxc2 {[%clk 0:00:49]}  Rxc2 {[%clk 0:00:18]} 27. Qxc2 {[%clk 0:00:49]}  Nf6 {[%clk 0:00:16]} 28. Ng3 {[%clk 0:00:47]}  Qd7 {[%clk 0:00:14]} 29. Nd2 {[%clk 0:00:43]}  Qc6 {[%clk 0:00:14]} 30. Qxc6 {[%clk 0:00:43]}  Bxc6 {[%clk 0:00:14]} 31. f3 {[%clk 0:00:43]}  Nb7 {[%clk 0:00:14]} 32. Kf2 {[%clk 0:00:43]}  a5 {[%clk 0:00:14]} 33. Ne2 {[%clk 0:00:41]}  axb4 {[%clk 0:00:14]} 34. axb4 {[%clk 0:00:41]}  Nd5 {[%clk 0:00:15]} 35. Bb1 {[%clk 0:00:34]}  Nxb4 {[%clk 0:00:15]} 36. Nc3 {[%clk 0:00:34]}  Nd5 {[%clk 0:00:13]} 37. Nce4 {[%clk 0:00:33]}  f5 {[%clk 0:00:11]} 38. Ng3 {[%clk 0:00:33]}  h6 {[%clk 0:00:11]} 39. Ne2 {[%clk 0:00:33]}  Kf6 {[%clk 0:00:10]} 40. Nb3 {[%clk 0:00:32]}  Ne7 {[%clk 0:00:08]} 41. e4 {[%clk 0:00:31]}  fxe4 {[%clk 0:00:07]} 42. fxe4 {[%clk 0:00:32]}  e5 {[%clk 0:00:06]} 43. d5 {[%clk 0:00:32]}  Bd7 {[%clk 0:00:07]} 44. Ke3 {[%clk 0:00:32]}  g5 {[%clk 0:00:06]} 45. Bd3 {[%clk 0:00:30]}  Ng6 {[%clk 0:00:06]} 46. g3 {[%clk 0:00:30]}  Nc5 {[%clk 0:00:04]} 47. Nd2 {[%clk 0:00:27]}  Nxd3 {[%clk 0:00:04]} 48. Kxd3 {[%clk 0:00:28]}  Ne7 {[%clk 0:00:04]} 49. Nb3 {[%clk 0:00:26]}  Nc8 {[%clk 0:00:03]} 50. Nc3 {[%clk 0:00:26]}  Nb6 {[%clk 0:00:03]} 51. Na5 {[%clk 0:00:25]}  Na4 {[%clk 0:00:01]} 52. Ne2 {[%clk 0:00:23]}  h5 {[%clk 0:00:01]} 53. Nc1 {[%clk 0:00:22]}  h4 {[%clk 0:00:01]} 54. Ne2 {[%clk 0:00:21]}  hxg3 {[%clk 0:00:00]} 55. hxg3 {[%clk 0:00:22]} 1-0


[Site "https://www.chess.com"]

[Event "Titled Tuesday Blitz November 14 Late 2023"]
[White "Vargas, Mauricio"]
[Black "Acosta Cruz, Oscar Yosimar"]
[WhiteFideId "4404572"]
[BlackFideId "5111269"]
[WhiteElo "1848"]
[BlackElo "2207"]
[Result "0-1"]
[Round "6"]
[TimeControl "180+1"]
[Date "2023.11.14"]
[WhiteClock "0:00:00"]
[BlackClock "0:00:58"]
[Board "132"]

1. e4 {[%clk 0:03:00]}  c6 {[%clk 0:02:59]} 2. Nc3 {[%clk 0:02:58]}  d5 {[%clk 0:02:59]} 3. d3 {[%clk 0:02:59]}  d4 {[%clk 0:02:56]} 4. Nce2 {[%clk 0:02:58]}  c5 {[%clk 0:02:56]} 5. f4 {[%clk 0:02:57]}  Nc6 {[%clk 0:02:56]} 6. Nf3 {[%clk 0:02:57]}  Bg4 {[%clk 0:02:53]} 7. Ng3 {[%clk 0:02:56]}  e5 {[%clk 0:02:52]} 8. f5 {[%clk 0:02:54]}  Nf6 {[%clk 0:02:51]} 9. h3 {[%clk 0:02:52]}  Bxf3 {[%clk 0:02:50]} 10. Qxf3 {[%clk 0:02:52]}  Be7 {[%clk 0:02:50]} 11. Be2 {[%clk 0:02:45]}  Qb6 {[%clk 0:02:46]} 12. O-O {[%clk 0:02:45]}  Nb4 {[%clk 0:02:46]} 13. Bd1 {[%clk 0:02:41]}  O-O-O {[%clk 0:02:44]} 14. a3 {[%clk 0:02:39]}  Nc6 {[%clk 0:02:44]} 15. Rb1 {[%clk 0:02:39]}  h5 {[%clk 0:02:37]} 16. Bd2 {[%clk 0:02:38]}  Kb8 {[%clk 0:02:35]} 17. b4 {[%clk 0:02:36]}  cxb4 {[%clk 0:02:27]} 18. axb4 {[%clk 0:02:33]}  Bxb4 {[%clk 0:02:23]} 19. Qe2 {[%clk 0:02:27]}  Qc5 {[%clk 0:02:21]} 20. Qe1 {[%clk 0:02:22]}  Bxd2 {[%clk 0:02:20]} 21. Qxd2 {[%clk 0:02:22]}  h4 {[%clk 0:02:20]} 22. Ne2 {[%clk 0:02:16]}  Nh5 {[%clk 0:02:19]} 23. Qc1 {[%clk 0:02:06]}  Rc8 {[%clk 0:02:18]} 24. Qb2 {[%clk 0:02:06]}  Rc7 {[%clk 0:02:13]} 25. Re1 {[%clk 0:01:47]}  Qe7 {[%clk 0:02:12]} 26. c4 {[%clk 0:01:40]}  dxc3 {[%clk 0:02:10]} 27. Nxc3 {[%clk 0:01:40]}  Nf4 {[%clk 0:01:58]} 28. Nd5 {[%clk 0:01:12]}  Qc5+ {[%clk 0:01:55]} 29. Kh2 {[%clk 0:01:05]}  Nxd3 {[%clk 0:01:39]} 30. Qd2 {[%clk 0:00:50]}  Nxe1 {[%clk 0:01:36]} 31. Qxe1 {[%clk 0:00:49]}  Rd7 {[%clk 0:01:32]} 32. Ba4 {[%clk 0:00:45]}  Rhd8 {[%clk 0:01:28]} 33. Qxh4 {[%clk 0:00:39]}  Rxd5 {[%clk 0:01:18]} 34. exd5 {[%clk 0:00:39]}  Qxd5 {[%clk 0:01:19]} 35. Qg3 {[%clk 0:00:35]}  Ka8 {[%clk 0:01:04]} 36. Qxg7 {[%clk 0:00:06]}  e4 {[%clk 0:01:03]} 37. Qg3 {[%clk 0:00:01]}  Ne5 {[%clk 0:00:58]} 38. Rd1 {[%clk 0:00:00]}  Nd3 {[%clk 0:00:58]} 0-1


[Site "https://www.chess.com"]

[Event "Titled Tuesday Blitz November 14 Late 2023"]
[White "Minina, Veronika"]
[Black "DAVIDHDZSTS"]
[WhiteFideId "4174780"]
[WhiteElo "2275"]
[BlackElo "1861"]
[Result "1-0"]
[Round "6"]
[TimeControl "180+1"]
[Date "2023.11.14"]
[WhiteClock "0:00:43"]
[BlackClock "0:00:01"]
[Board "133"]

1. Nf3 {[%clk 0:03:00]}  e6 {[%clk 0:02:59]} 2. g3 {[%clk 0:03:01]}  f5 {[%clk 0:02:58]} 3. Bg2 {[%clk 0:03:02]}  Nf6 {[%clk 0:02:57]} 4. c4 {[%clk 0:03:02]}  d5 {[%clk 0:02:56]} 5. O-O {[%clk 0:03:03]}  Bd6 {[%clk 0:02:54]} 6. d3 {[%clk 0:03:04]}  c6 {[%clk 0:02:54]} 7. Nbd2 {[%clk 0:03:03]}  O-O {[%clk 0:02:54]} 8. Qc2 {[%clk 0:03:04]}  Qe7 {[%clk 0:02:45]} 9. e4 {[%clk 0:03:03]}  fxe4 {[%clk 0:02:38]} 10. dxe4 {[%clk 0:03:04]}  dxe4 {[%clk 0:02:25]} 11. Nxe4 {[%clk 0:03:05]}  Nxe4 {[%clk 0:02:25]} 12. Qxe4 {[%clk 0:03:05]}  Nd7 {[%clk 0:02:22]} 13. Ng5 {[%clk 0:02:37]}  Nf6 {[%clk 0:02:19]} 14. Qh4 {[%clk 0:02:38]}  e5 {[%clk 0:02:12]} 15. b3 {[%clk 0:02:32]}  Bf5 {[%clk 0:02:01]} 16. Bb2 {[%clk 0:02:30]}  h6 {[%clk 0:01:56]} 17. Nf3 {[%clk 0:02:18]}  Rfe8 {[%clk 0:01:40]} 18. Rae1 {[%clk 0:02:17]}  Qc7 {[%clk 0:01:36]} 19. c5 {[%clk 0:02:09]}  Bxc5 {[%clk 0:01:31]} 20. Bxe5 {[%clk 0:02:08]}  Qf7 {[%clk 0:01:28]} 21. Rd1 {[%clk 0:01:35]}  Ng4 {[%clk 0:01:14]} 22. Bc3 {[%clk 0:01:23]}  g5 {[%clk 0:00:39]} 23. Nxg5 {[%clk 0:01:18]}  Qg6 {[%clk 0:00:31]} 24. Nh3 {[%clk 0:01:07]}  Be7 {[%clk 0:00:19]} 25. Nf4 {[%clk 0:00:59]}  Bxh4 {[%clk 0:00:15]} 26. Nxg6 {[%clk 0:01:00]}  Bxg6 {[%clk 0:00:15]} 27. gxh4 {[%clk 0:00:59]}  Rad8 {[%clk 0:00:13]} 28. Rxd8 {[%clk 0:00:46]}  Rxd8 {[%clk 0:00:14]} 29. h3 {[%clk 0:00:47]}  Rd3 {[%clk 0:00:10]} 30. Ba1 {[%clk 0:00:39]}  Nxf2 {[%clk 0:00:03]} 31. Rxf2 {[%clk 0:00:40]}  Rd1+ {[%clk 0:00:04]} 32. Rf1 {[%clk 0:00:41]}  Rxf1+ {[%clk 0:00:04]} 33. Kxf1 {[%clk 0:00:41]}  Kf7 {[%clk 0:00:04]} 34. Kf2 {[%clk 0:00:41]}  Ke6 {[%clk 0:00:04]} 35. Ke3 {[%clk 0:00:42]}  h5 {[%clk 0:00:05]} 36. Kf4 {[%clk 0:00:42]}  c5 {[%clk 0:00:03]} 37. Kg5 {[%clk 0:00:43]}  b6 {[%clk 0:00:01]} 38. Kxg6 {[%clk 0:00:43]} 1-0


[Site "https://www.chess.com"]